Workbook

Sheet Form 1A Census
A1: (FORM 1A) Census Survey: Income Survey Results Income Tabulation Form
A3: Instructions: Complete the yellow highlighted cells below. Select only one option for Entry #16.
A5: Municipality:
B6: Survey Start Date (date first survey was conducted/distributed):
B7: Survey Completion Date (date last survey was conducted/collected):
A9: Entry #:
A10: 1 | B10: Number of families in the project service area. [All families in the service area must be given the opportunity to complete the survey for a Census Survey. Refer to the “Families in the Service Area” section in the Income Survey Guide for guidance on estimating and determining the number of families in a project service area.]
A11: 2 | B11: Minimum number of families needed to respond to meet HUD Margin of Error (MOE) standard. [Refer to the “Margin of Error/Response Rate” section in the Income Survey Guide for guidance on meeting applicable HUD Margin of Error standard.]
A12: 3 | B12: Number of families that completed a survey (i.e., survey respondents). [calculate using survey responses]
A13: 4 | B13: Maximum Margin of Error (MOE) for Survey Allowed. [Refer to "Margin of Error/Response Rate" section of Income Survey Guide for guidance in determining maximum MOE allowed.] | C13: +/-
A14: 5 | B14: Actual Margin of Error (MOE) of Survey. [Refer to "Margin of Error/Response Rate" section of Income Survey Guide for guidance on using SurveyMonkey.com to determine MOE.] | C14: +/-
A15: 6 | B15: Number of LMI families among survey respondents. [calculate using survey responses]
A16: 7 | B16: Number of LMI persons among survey respondents (this number is also considered the total number of LMI persons living in the project service area). [calculate using survey responses]
A17: 8 | B17: Average size of LMI families in sample/among respondents. [value of Entry 7 divided by value of Entry 6] | C17: =C16/C15 -> 
A18: 9 | B18: Number of Non-LMI families among survey respondents. [calculate using survey responses]
A19: 10 | B19: Number of Non-LMI persons among survey respondents. [calculate using survey responses]
A20: 11 | B20: Average size of Non-LMI families in sample/among respondents. [value of Entry 10 divided by value of Entry 9] | C20: =C19/C18 -> 
A21: 12 | B21: Number of all persons in all families among survey respondents. [value of Entry 7 + Entry 10] | C21: =C16+C19 -> 0
A22: 13 | B22: Average family size among all survey respondents. [value of Entry 12 divided by value of Entry 3] | C22: =C21/C12 -> 
A23: 14 | B23: Number of non-responding families (families that did not return survey or returned invalid survey). [value of Entry 1 minus value of Entry 3] | C23: =C10-C12 -> 0
A24: 15 | B24: Estimated number of persons in non-responding families. [value of Entry 13 multiplied by value of Entry 14 rounded to nearest whole number] | C24: =C22*C23 -> 
A25: 16 | B25: Number of persons living in the Service Area (i.e., Service Area population). [Enter the exact population if known (i.e., if a 100% survey response rate was achieved) for 16(a) Option 1 below. If the survey response rate was less than 100%, then the population must be estimated. Refer to the “Tabulating Survey Results” section in the Income Survey Guide and the items below for guidance on estimating population. Select one of the methods below for estimating the population.] | C25: Enter number in cell below corresponding to Method/ Option used to determine or estimate population:
A26: 16(a) | B26: Option 1 - Exact/Known: Exact population based on 100% survey responses. [value of Entry 12]
A27: 16(b) | B27: Option 2 - Estimate: STANDARD Calculated estimate by multiplying the average family size of survey respondents by the number of all families in the service area. [value of Entry 1 multiplied by value of Entry 13].
A28: 16(c) | B28: Option 3 - Estimate: Calculated estimate by adding the estimated number of persons in non-responding families to the number of persons in responding families. [value of Entry 12 + Entry 15] -- May be appropriate option when the average family size of the LMI families varies signficantly from the average family size of the non-LMI families among survey respondents.
A29: 16(d) | B29: Option 4 - Estimate: Total population based on the most recent U.S. Census American Community Survey 5-Year Estimates data available and in effect at the time of the survey distribution end date. [May be considered/allowed for service areas that are community-wide, contingent upon being approved by DEHCR as methodologically sound prior to application, upon review of survey response data. Typically Option 2 or Option 3 above using survey data to estimate the population in the income survey tabulation is more methodologically sound.]
A30: 16(e) | B30: Option 5 - Estimate: Total population based on HUD LMISD for local government(s) and/or census block group(s)/tracts(s). [May be considered/allowed for service areas for which HUD LMISD are available, contingent upon being approved by DEHCR as methodologically sound prior to CDBG application, upon review of survey response data. Typically Option 2 or Option 3 above using survey data to estimate the population in the income survey tabulation is more methodologically sound.]
A31: 16(f) | B31: Option 6 - Estimate: OTHER - CONTACT DEHCR. [An alternative method may be considered/used to adjust for the statistical impact of significant outliers and/or data anomalies if pre-approved by DEHCR prior to final submission to DEHCR. Contact DEHCR for guidance on other options for calculating population to adjust for the statistical impact of significant outliers and/or data anomalies.]
A32: 17 | B32: LMI Percentage for Service Area/Survey Area [value of Entry 7 divided by the population number entered for the value in Entry 16; then multiplied by 100] This value must be at least 51.00% for the Service Area/Survey Area to meet the LMI National Objective. | C32: =(C16/C27) -> 

Sheet Form 1A Census Ex.
A1: (FORM 1A EXAMPLE) Census Survey: Income Survey Results Income Tabulation Form
A3: Instructions: Complete the yellow highlighted cells below. Select only one option for Entry #16.
A5: Municipality: | B5: Village of Yourville
B6: Survey Start Date (date first survey was conducted/distributed): | C6: 2019-11-15
B7: Survey Completion Date (date last survey was conducted/collected): | C7: 2020-01-24
A8: Entry #:
A9: 1 | B9: Number of families in the project service area. [All families in the service area must be given the opportunity to complete the survey for a Census Survey. Refer to the “Families in the Service Area” section in the Income Survey Guide for guidance on estimating and determining the number of families in a project service area.] | C9: 100
A10: 2 | B10: Minimum number of families needed to respond to meet HUD Margin of Error (MOE) standard. [Refer to the “Margin of Error/Response Rate” section in the Income Survey Guide for guidance on meeting applicable HUD Margin of Error standard.] | C10: 41
A11: 3 | B11: Number of families that completed a survey (i.e., survey respondents). [calculate using survey responses] | C11: 75
A12: 4 | B12: Maximum Margin of Error (MOE) for Survey Allowed. [Refer to "Margin of Error/Response Rate" section of Income Survey Guide for guidance in determining maximum MOE allowed.] | C12: +/- 10.00
A13: 5 | B13: Actual Margin of Error (MOE) of Survey. [Refer to "Margin of Error/Response Rate" section of Income Survey Guide for guidance on using SurveyMonkey.com to determine MOE.] | C13: +/- 4.76
A14: 6 | B14: Number of LMI families among survey respondents. [calculate using survey responses] | C14: 52
A15: 7 | B15: Number of LMI persons among survey respondents (this number is also considered the total number of LMI persons living in the project service area). [calculate using survey responses] | C15: 135
A16: 8 | B16: Average size of LMI families in sample/among respondents. [value of Entry 7 divided by value of Entry 6] | C16: =C15/C14 -> 2.60
A17: 9 | B17: Number of Non-LMI families among survey respondents. [calculate using survey responses] | C17: 23
A18: 10 | B18: Number of Non-LMI persons among survey respondents. [calculate using survey responses] | C18: 40
A19: 11 | B19: Average size of Non-LMI families in sample/among respondents. [value of Entry 10 divided by value of Entry 9] | C19: =C18/C17 -> 1.74
A20: 12 | B20: Number of all persons in all families among survey respondents. [value of Entry 7 + Entry 10] | C20: =C15+C18 -> 175
A21: 13 | B21: Average family size among all survey respondents. [value of Entry 12 divided by value of Entry 3] | C21: =C20/C11 -> 2.33
A22: 14 | B22: Number of non-responding families (families that did not return survey or returned invalid survey). [value of Entry 1 minus value of Entry 3] | C22: =C9-C11 -> 25
A23: 15 | B23: Estimated number of persons in non-responding families. [value of Entry 13 multiplied by value of Entry 14 rounded to nearest whole number] | C23: =C21*C22 -> 58
A24: 16 | B24: Number of persons living in the Service Area (i.e., Service Area population). [Enter the exact population if known (i.e., if a 100% survey response rate was achieved) for 16(a) Option 1 below. If the survey response rate was less than 100%, then the population must be estimated. Refer to the “Tabulating Survey Results” section in the Income Survey Guide and the items below for guidance on estimating population. Select one of the methods below for estimating the population.] | C24: Enter number in cell below corresponding to Method/Option used to determine or estimate population:
A25: 16(a) | B25: Option 1 - Exact/Known: Exact population based on 100% survey responses. [value of Entry 12]
A26: 16(b) | B26: Option 2 - Estimate: STANDARD Calculated estimate by multiplying the average family size of survey respondents by the number of all families in the service area. [value of Entry 1 multiplied by value of Entry 13]. | C26: =C9*C21 -> 233
A27: 16(c) | B27: Option 3 - Estimate: Calculated estimate by adding the estimated number of persons in non-responding families to the number of persons in responding families. [value of Entry 12 + Entry 15] -- May be appropriate option when the average family size of the LMI families varies signficantly from the average family size of the non-LMI families among survey respondents.
A28: 16(d) | B28: Option 4 - Estimate: Total population based on the most recent U.S. Census American Community Survey 5-Year Estimates data available and in effect at the time of the survey distribution end date. [May be considered/allowed for service areas that are community-wide, contingent upon being approved by DEHCR as methodologically sound prior to application, upon review of survey response data. Typically Option 2 or Option 3 above using survey data to estimate the population in the income survey tabulation is more methodologically sound.]
A29: 16(e) | B29: Option 5 - Estimate: Total population based on HUD LMISD for local government(s) and/or census block group(s)/tracts(s). [May be considered/allowed for service areas for which HUD LMISD are available, contingent upon being approved by DEHCR as methodologically sound prior to CDBG application, upon review of survey response data. Typically Option 2 or Option 3 above using survey data to estimate the population in the income survey tabulation is more methodologically sound.]
A30: 16(f) | B30: Option 6 - Estimate: OTHER - CONTACT DEHCR. [An alternative method may be considered/used to adjust for the statistical impact of significant outliers and/or data anomalies if pre-approved by DEHCR prior to final submission to DEHCR. Contact DEHCR for guidance on other options for calculating population to adjust for the statistical impact of significant outliers and/or data anomalies.]
A31: 17 | B31: LMI Percentage for Service Area/Survey Area [value of Entry 7 divided by the population number entered for the value in Entry 16; then multiplied by 100] This value must be at least 51.00% for the Service Area/Survey Area to meet the LMI National Objective. | C31: =(C15/C26) -> 57.86%

Sheet Form 1B Random
A1: (FORM 1B) Random Sample Survey: Income Survey Results Income Tabulation Form
A3: Instructions: Complete the yellow highlighted cells below. Select only one option for Entry #18.
A5: Municipality:
B6: Survey Start Date (date first survey was conducted/distributed):
B7: Survey Completion Date (date last survey was conducted/collected):
A9: Entry #:
A10: 1 | B10: Number of families in the Service Area. [Refer to the “Families in the Service Area” section in this Income Survey Guide for guidance on estimating and determining the number of families in a Service Area.]
A11: 2 | B11: Sample Size. (i.e., number of families needed to respond to meet HUD Margin of Error (MOE) standard). [Refer to the “Margin of Error/Response Rate” section in the Income Survey Guide for guidance on meeting applicable HUD Margin of Error standard.]
A12: 3 | B12: Number of families in randomized sample (i.e., number of families to which the survey was distributed). [Refer to the “Random Sample Survey” section in the Income Survey Guide to review the terms for oversampling for a randomized sample survey (value of Entry 3 cannot exceed: value of Entry 2 multiplied by 1.20).]
A13: 4 | B13: Margin of Error (MOE) required. [Refer to "Margin of Error/Response Rate" section of Income Survey Guide for guidance in determining the MOE standard that must be met.]
A14: 5 | B14: Number of families that responded [Must equal value of Entry 2. Do not count responses in Oversample that were not needed - only use Oversample responses to reach the Sample Size number in Line 2 required and replace non-respondents from the Original Sample with respondents from the Oversample using random sample survey methodology in selecting replacements. Refer to the "Random Sample Section" of the Income Survey Guide for guidance.]
A15: 6 | B15: Actual Margin of Error (MOE) of Survey. [Refer to "Margin of Error/Response Rate" section of Income Survey Guide for guidance on using SurveyMonkey.com to determine MOE.]
A16: 7 | B16: Number of LMI families among survey respondents. [calculate using survey responses]
A17: 8 | B17: Number of LMI persons among survey respondents. [calculate using survey responses]
A18: 9 | B18: Average size of LMI families in sample/among survey respondents. [value of Entry 8 divided by value of Entry 7] | C18: =C17/C16 -> 
A19: 10 | B19: Number of Non-LMI families among survey respondents. [calculate using survey responses]
A20: 11 | B20: Number of Non-LMI persons among survey respondents. [calculate using survey responses]
A21: 12 | B21: Average size of Non-LMI families in sample/among respondents. [value of Entry 11 divided by value of Entry 10] | C21: =C20/C19 -> 
A22: 13 | B22: Number of all persons in all families among survey respondents. [value of Entry 8 + Entry 11] | C22: =C17+C20 -> 0
A23: 14 | B23: Average family size among all survey respondents. [value of Entry 13 divided by value of Entry 5] | C23: =C22/C14 -> 
A24: 15 | B24: LMI ratio of sample/respondents. [value of Entry 8 divided by value of Entry 13] | C24: =C17/C22 -> 
A25: 16 | B25: Non-LMI ratio of sample/respondents. [value of Entry 11 divided by value of Entry 13] | C25: =C20/C22 -> 
A26: 17 | B26: Estimated LMI Percentage for Service Area/Survey Area (percentage of LMI persons in the project service area). [value of Entry 15 mulitiplied by 100. The LMI percentage of survey sample is applied to the entire service area population when the Random Sample Survey methodology is used. The percentage must be at least 51.00 to meet the LMI National Objective.] | C26: =C24*100 -> 
A27: 18 | B27: Number of persons living in the Service Area (i.e., Service Area population). For all Random Sample Surveys, the total population of the Service Area must be estimated. Refer to the “Tabulating Survey Results” section in the Income Survey Guide and the items below for guidance on estimating population. Select one of the methods below to estimate the population. | C27: Enter number in cell below corresponding to Method/ Option used to determine or estimate population:
A28: 18(a) | B28: Option 1: STANDARD: Calculated estimate using survey data - Method 1: [value of Entry 1 multiplied by value of Entry 14; then rounded to nearest whole number]
A29: 18(b) | B29: Option 2: Calculated estimate using survey data - Method 2: May be used to reduce the statistical impact of outliers. [(value of Entry 1 multiplied by Entry 15, and then multiplied by Entry 9) added to (value of Entry 1 multiplied by Entry 16 and then multiplied by Entry 12); then rounded to nearest whole number]
A30: 18(c) | B30: Option 3: Total population based on the most recent U.S. Census American Community Survey 5-Year Estimates data. [Allowed for service areas that are community-wide, contingent upon being pre-approved by DEHCR as methodologically sound for the service area population calculation prior to CDBG application.]
A31: 18(d) | B31: Option 4: Total population based on HUD LMISD for local government(s) and/or census block group(s)/tracts(s). [Allowed for service areas for which HUD LMISD are available, contingent upon being pre-approved by DEHCR as methodologically sound for the service area population calculation prior to CDBG application.]
A32: 18(e) | B32: Option 5: OTHER - CONTACT DEHCR [An alternative method may be considered/used if pre-approved by DEHCR prior to CDBG application. Contact DEHCR for guidance on other options for calculating population to adjust for the statistical impact of significant outliers and/or data anomalies.]
A33: 19 | B33: Estimated total number of LMI persons in the project service area. [value of Entry 18 multiplied by value of Entry 15; then rounded to the nearest whole number] | C33: =(SUM(C28:C32))*C24 -> 

Sheet Form 1B Random Ex.
A1: (FORM 1B EXAMPLE) Random Sample Survey: Income Survey Results Income Tabulation Form
A3: Instructions: Complete the yellow highlighted cells below. Select only one option for Entry #18.
A5: Municipality: | B5: Village of Yourville
B6: Survey Start Date (date first survey was conducted/distributed): | C6: 2019-11-15
B7: Survey Completion Date (date last survey was conducted/collected): | C7: 2020-01-24
A9: Entry #:
A10: 1 | B10: Number of families in the Service Area. [Refer to the “Families in the Service Area” section in this Income Survey Guide for guidance on estimating and determining the number of families in a Service Area.] | C10: 1000
A11: 2 | B11: Sample Size. (i.e., number of families needed to respond to meet HUD Margin of Error (MOE) standard). [Refer to the “Margin of Error/Response Rate” section in the Income Survey Guide for guidance on meeting applicable HUD Margin of Error standard.] | C11: 280
A12: 3 | B12: Number of families in randomized sample (i.e., number of families to which the survey was distributed). [Refer to the “Random Sample Survey” section in the Income Survey Guide to review the terms for oversampling for a randomized sample survey (value of Entry 3 cannot exceed: value of Entry 2 multiplied by 1.20).] | C12: 336
A13: 4 | B13: Margin of Error (MOE) required. [Refer to "Margin of Error/Response Rate" section of Income Survey Guide for guidance in determining the MOE standard that must be met.] | C13: +/- 4.67
A14: 5 | B14: Number of families that responded [Must equal value of Entry 2. Do not count responses in Oversample that were not needed - only use Oversample responses to reach the Sample Size number in Line 2 required and replace non-respondents from the Original Sample with respondents from the Oversample using random sample survey methodology in selecting replacements. Refer to the "Random Sample Section" of the Income Survey Guide for guidance.] | C14: 280
A15: 6 | B15: Actual Margin of Error (MOE) of Survey. [Refer to "Margin of Error/Response Rate" section of Income Survey Guide for guidance on using SurveyMonkey.com to determine MOE.] | C15: +/- 4.67
A16: 7 | B16: Number of LMI families among survey respondents. [calculate using survey responses] | C16: 131
A17: 8 | B17: Number of LMI persons among survey respondents. [calculate using survey responses] | C17: 352
A18: 9 | B18: Average size of LMI families in sample/among survey respondents. [value of Entry 8 divided by value of Entry 7] | C18: =C17/C16 -> 2.69
A19: 10 | B19: Number of Non-LMI families among survey respondents. [calculate using survey responses] | C19: 149
A20: 11 | B20: Number of Non-LMI persons among survey respondents. [calculate using survey responses] | C20: 303
A21: 12 | B21: Average size of Non-LMI families in sample/among respondents. [value of Entry 11 divided by value of Entry 10] | C21: =C20/C19 -> 2.03
A22: 13 | B22: Number of all persons in all families among survey respondents. [value of Entry 8 + Entry 11] | C22: =C17+C20 -> 655
A23: 14 | B23: Average family size among all survey respondents. [value of Entry 13 divided by value of Entry 5] | C23: =C22/C14 -> 2.34
A24: 15 | B24: LMI ratio of sample/respondents. [value of Entry 8 divided by value of Entry 13] | C24: =C17/C22 -> 0.5374
A25: 16 | B25: Non-LMI ratio of sample/respondents. [value of Entry 11 divided by value of Entry 13] | C25: =C20/C22 -> 0.4626
A26: 17 | B26: Estimated LMI Percentage for Service Area/Survey Area (percentage of LMI persons in the project service area). [value of Entry 15 mulitiplied by 100. The LMI percentage of survey sample is applied to the entire service area population when the Random Sample Survey methodology is used. The percentage must be at least 51.00 to meet the LMI National Objective.] | C26: =C24*100 -> 53.74
A27: 18 | B27: Number of persons living in the Service Area (i.e., Service Area population) For all Random Sample Surveys, the total population of the Service Area must be estimated. Refer to the “Tabulating Survey Results” section in the Income Survey Guide and the items below for guidance on estimating population. Select one of the methods below to estimate the population. | C27: Enter number in cell below corresponding to Method/Option used to determine or estimate population:
A28: 18(a) | B28: Option 1: STANDARD: Calculated estimate using survey data - Method 1: [value of Entry 1 multiplied by value of Entry 14; then rounded to nearest whole number]
A29: 18(b) | B29: Option 2: Calculated estimate using survey data - Method 2: May be used to reduce the statistical impact of outliers. [(value of Entry 1 multiplied by Entry 15, and then multiplied by Entry 9) added to (value of Entry 1 multiplied by Entry 16 and then multiplied by Entry 12); then rounded to nearest whole number]. | C29: =((C10*C24*C18)+(C10*C25*C21)) -> 2385
A30: 18(c) | B30: Option 3: Total population based on the most recent U.S. Census American Community Survey 5-Year Estimates data. [Allowed for service areas that are community-wide, contingent upon being pre-approved by DEHCR as methodologically sound for the service area population calculation prior to CDBG application.]
A31: 18(d) | B31: Option 4: Total population based on HUD LMISD for local government(s) and/or census block group(s)/tracts(s). [Allowed for service areas for which HUD LMISD are available, contingent upon being pre-approved by DEHCR as methodologically sound for the service area population calculation prior to CDBG application.]
A32: 18(e) | B32: Option 5: OTHER - CONTACT DEHCR [An alternative method may be considered/used if pre-approved by DEHCR prior to CDBG application. Contact DEHCR for guidance on other options for calculating population to adjust for the statistical impact of significant outliers and/or data anomalies.]
A33: 19 | B33: Estimated total number of LMI persons in the project service area. [value of Entry 18 multiplied by value of Entry 15; then rounded to the nearest whole number] | C33: =(SUM(C28:C32))*C24 -> 1282

Sheet Form 2
A1: (FORM 2) Income Survey Income Level Responses Form | K1: Survey End Date: | M1: ADD DATE
A2: [ADD UGLG NAME HERE, e.g. VILLAGE OF YOURVILLE]
B4: Non-Respondent (enter "1" if applicable) | C4: Vacant (enter "1" if applicable) | D4: Family Size | M4: Family Income Level
D5: 1 | E5: 2 | F5: 3 | G5: 4 | H5: 5 | I5: 6 | J5: 7 | K5: ≥8 | M5: (Enter # of persons in family in column associated with their income level.)
A6: Survey # | M6: Family BELOW LMI Threshold (enter Family Size #) | N6: ABOVE LMI Threshold (enter Family Size #)
A7: Insert/Delete Rows Below As Needed.
M27: TOTALS:
A28: # FAMILIES RESPONDING FAMILIES: | D28: =COUNT(D8:D27) -> 0 | E28: =COUNT(E8:E27) -> 0 | F28: =COUNT(F8:F27) -> 0 | G28: =COUNT(G8:G27) -> 0 | H28: =COUNT(H8:H27) -> 0 | I28: =COUNT(I8:I27) -> 0 | J28: =COUNT(J8:J27) -> 0 | K28: =COUNT(K8:K27) -> 0 | L28: =SUM(D28:K28) -> 0 | M28: =COUNT(M8:M27) -> 0 | N28: =COUNT(N8:N27) -> 0
A29: # PERSONS IN RESPONDING FAMILIES: | D29: =SUM(D8:D27) -> 0 | E29: 0 | F29: 0 | G29: 0 | H29: 0 | I29: 0 | J29: 0 | K29: 0 | L29: =SUM(D29:K29) -> 0 | M29: =SUM(M8:M27) -> 0 | N29: =SUM(N8:N27) -> 0
A30: # VACANT OR NON-RESPOND-ING | B30: =SUM(B8:B27) -> 0 | C30: =SUM(C8:C27) -> 0

Sheet Form 2 Ex.
B1: (FORM 2 EXAMPLE) Income Survey Income Level Responses Form | L1: Survey End Date: 1/24/2020
B2: VILLAGE OF YOURVILLE
C4: Non-Respondent (enter "1" if applicable) | D4: Vacant (enter "1" if applicable) | E4: Family Size | N4: Family Income Level
E5: 1 | F5: 2 | G5: 3 | H5: 4 | I5: 5 | J5: 6 | K5: 7 | L5: ≥8 | N5: (Enter # of persons in family in column associated with their income level.)
B6: Survey # | N6: Family BELOW LMI Threshold (enter Family Size #) | O6: ABOVE LMI Threshold (enter Family Size #)
B7: Insert/Delete Rows Below As Needed.
B8: 1 | G8: 3 | O8: 3
B9: 2 | D9: 1
B10: 3 | E10: 1 | N10: 1
B11: 4 | E11: 1 | N11: 1
B12: 5 | F12: 2 | N12: 2
B13: 6 | C13: 1
B14: 7 | E14: 1 | N14: 1
B15: 8 | F15: 2 | N15: 2
B16: 9 | D16: 1
B17: 10 | F17: 2 | O17: 2
B18: 11 | F18: 2 | O18: 2
B19: 12 | E19: 1 | O19: 1
B20: 13 | E20: 1 | N20: 1
B21: 14 | E21: 1 | N21: 1
B22: 15 | F22: 2 | O22: 2
B23: 16 | G23: 3 | O23: 3
B24: 17 | E24: 1 | N24: 1
B25: 18 | F25: 2 | N25: 2
B26: 19 | E26: 1 | N26: 1
B27: 20 | E27: 1 | N27: 1
N28: TOTALS:
B29: # FAMILIES RESPONDING FAMILIES: | E29: =COUNT(E8:E28) -> 9 | F29: 6 | G29: 2 | H29: 0 | I29: 0 | J29: 0 | K29: 0 | L29: 0 | M29: =SUM(E29:L29) -> 17 | N29: =COUNT(N8:N28) -> 11 | O29: =COUNT(O8:O28) -> 6
B30: # PERSONS IN RESPONDING FAMILIES: | E30: =SUM(E8:E28) -> 9 | F30: 12 | G30: 6 | H30: 0 | I30: 0 | J30: 0 | K30: 0 | L30: 0 | M30: =SUM(E30:L30) -> 27 | N30: =SUM(N8:N28) -> 14 | O30: =SUM(O8:O28) -> 13
B31: # VACANT OR NON-RESPONDING | C31: =SUM(C8:C28) -> 1 | D31: =SUM(D8:D28) -> 2

Sheet Form 3
A1: (FORM 3) Income Survey Race/Ethnicity Responses Form | R1: Survey End Date: | U1: [ADD DATE]
A2: ENTER UGLG NAME HERE, e.g. VILLLAGE OF YOURVILLE
A4: Survey # | B4: Non-Respon-dent (enter "1" if appli-cable) | C4: Vacant (enter "1" if appli-cable) | D4: Family Race/ Ethnicity Information | Y4: TOTAL # IN FAMILY (Family Size)
D5: White | E5: White + HISPANIC | F5: Black/ African American | G5: Black/ African American + HISPANIC | H5: Asian | I5: Asian + HISPANIC | J5: American Indian/ Alaskan Native | K5: American Indian/ Alaskan Native + HISPANIC | L5: Native Hawaiian/ Pacific Islander | M5: Native Hawaiian/ Pacific Islander + HISPANIC | N5: American Indian/ Alaskan Native & White | O5: American Indian/ Alaskan Native & White + HISPANIC | P5: Asian & White | Q5: Asian & White + HISPANIC | R5: Black/ African American & White | S5: Black/ African American & White + HISPANIC | T5: American Indian/ Alaskan Native & Black/African American | U5: American Indian/ Alaskan Native & Black/African American + HISPANIC | V5: Other Multi- Racial | W5: Other Multi- Racial + HISPANIC | X5: No Answer
A6: Insert/Delete Rows Below As Needed.
Y7: =SUM(D7:X7) -> 0
Y8: =SUM(D8:X8) -> 0
Y9: 0
Y10: 0
Y11: 0
Y12: 0
Y13: 0
Y14: 0
Y15: 0
Y16: 0
Y17: 0
Y18: 0
Y19: 0
Y20: 0
Y21: 0
Y22: 0
Y23: 0
Y24: 0
Y25: 0
Y26: 0
Y27: =SUM(D27:X27) -> 0
Y28: 0
A30: TOTALS: | B30: =SUM(B7:B29) -> 0 | C30: 0 | D30: 0 | E30: 0 | F30: 0 | G30: 0 | H30: 0 | I30: 0 | J30: 0 | K30: 0 | L30: 0 | M30: 0 | N30: 0 | O30: 0 | P30: 0 | Q30: 0 | R30: 0 | S30: 0 | T30: 0 | U30: 0 | V30: 0 | W30: 0 | X30: 0 | Y30: 0

Sheet Form 3 Ex.
A1: (FORM 3 EXAMPLE) Income Survey Race/Ethnicity Responses Form | Q1: Survey End Date: 1/24/2020
A2: Village of Yourville
A4: Survey # | B4: Non-Respon-dent (enter "1" if appli-cable) | C4: Vacant (enter "1" if appli-cable) | D4: Family Race/ Ethnicity Information | Y4: TOTAL # IN FAMILY (Family Size)
D5: White | E5: White + HISPANIC | F5: Black/ African American | G5: Black/ African American + HISPANIC | H5: Asian | I5: Asian + HISPANIC | J5: American Indian/ Alaskan Native | K5: American Indian/ Alaskan Native + HISPANIC | L5: Native Hawaiian/ Pacific Islander | M5: Native Hawaiian/ Pacific Islander + HISPANIC | N5: American Indian/ Alaskan Native & White | O5: American Indian/ Alaskan Native & White + HISPANIC | P5: Asian & White | Q5: Asian & White + HISPANIC | R5: Black/ African American & White | S5: Black/ African American & White + HISPANIC | T5: American Indian/ Alaskan Native & Black/African American | U5: American Indian/ Alaskan Native & Black/African American + HISPANIC | V5: Other Multi- Racial | W5: Other Multi- Racial + HISPANIC | X5: No Answer
A6: Insert/Delete Rows Below As Needed.
A7: 1 | D7: 3 | Y7: =SUM(D7:X7) -> 3
A8: 2 | C8: 1 | Y8: =SUM(D8:X8) -> 0
A9: 3 | D9: 1 | Y9: 1
A10: 4 | D10: 1 | Y10: 1
A11: 5 | D11: 2 | Y11: 2
A12: 6 | B12: 1 | Y12: 0
A13: 7 | D13: 1 | Y13: 1
A14: 8 | E14: 2 | Y14: 2
A15: 9 | C15: 1 | Y15: 0
A16: 10 | D16: 2 | Y16: 2
A17: 11 | N17: 2 | Y17: 2
A18: 12 | D18: 1 | Y18: 1
A19: 13 | D19: 1 | Y19: 1
A20: 14 | D20: 1 | Y20: 1
A21: 15 | E21: 2 | Y21: 2
A22: 16 | F22: 3 | Y22: 3
A23: 17 | D23: 1 | Y23: 1
A24: 18 | D24: 2 | Y24: 2
A25: 19 | D25: 1 | Y25: 1
A26: 20 | H26: 1 | Y26: 1
A28: TOTALS: | B28: =SUM(B7:B26) -> 1 | C28: 2 | D28: 17 | E28: 4 | F28: 3 | G28: 0 | H28: 1 | I28: 0 | J28: 0 | K28: 0 | L28: 0 | M28: 0 | N28: 2 | O28: 0 | P28: 0 | Q28: 0 | R28: 0 | S28: 0 | T28: 0 | U28: 0 | V28: 0 | W28: 0 | X28: 0 | Y28: 27

Sheet Form 4
A1: (FORM 4) Income Survey Distribution Contact List Form | H1: Survey End Date: | K1: [ADD DATE]
A2: ENTER UGLG NAME HERE, e.g. VILLLAGE OF YOURVILLE
A4: Survey # | B4: Non-Reson-dent (enter "1" if appli-cable) | C4: Vacant (enter "1" if appli-cable) | D4: Property Street Address (Property Location in Service Area): | E4: (Property Location) City: | F4: (Property Location) Zip: | G4: Mailing Address (If Different than Property Location Address): | H4: (Mailing) City: | I4: (Mail-ing) State: | J4: (Mail-ing) Zip: | K4: Telephone # (Only If Used to Contact/Attempt to Contact): | L4: Email Address (Only If Used to Contact/Attempt to Contact):
A5: Insert/Delete Rows Below As Needed. Insert/Delete Columns As Needed.
A28: TOTALS: | B28: =SUM(B5:B27) -> 0 | C28: =SUM(C5:C27) -> 0

Sheet Form 4 Ex.
A1: (FORM 4 EXAMPLE) Income Survey Distribution Contact List Form | H1: Survey End Date: 1/24/2020
A2: VILLAGE OF YOURVILLE
A4: Survey # | B4: Non-Reson-dent (enter "1" if appli-cable) | C4: Vacant (enter "1" if appli-cable) | D4: Property Street Address (Property Location in Service Area): | E4: (Property Location) City: | F4: (Property Location) Zip: | G4: Mailing Address (If Different than Property Location Address): | H4: (Mailing) City: | I4: (Mail-ing) State: | J4: (Mail-ing) Zip: | K4: Telephone # (Only If Used to Contact): | L4: Email Address (Only If Used to Contact):
A5: Insert/Delete Rows Below As Needed. Insert/Delete Columns As Needed.
A6: 1 | D6: 123 Wisconsin Ave. | E6: Yourville | F6: 59999
A7: 2 | C7: 1 | D7: 124 Wisconsin Ave. | E7: Yourville | F7: 59999 | G7: 123 Washington Ave. | H7: Fort Myers | I7: FL | J7: 99999
A8: 3 | D8: 125 Wisconsin Ave. | E8: Yourville | F8: 59999
A9: 4 | D9: 126 Wisconsin Ave. | E9: Yourville | F9: 59999
A10: 5 | D10: 127 Wisconsin Ave. | E10: Yourville | F10: 59999
A11: 6 | B11: 1 | D11: 128 Wisconsin Ave. | E11: Yourville | F11: 59999 | G11: 456 Miller Lane | H11: Phoenix | I11: AZ | J11: 88888 | K11: 708-123-5555 | L11: smith@tds.com
A12: 7 | D12: 129 Wisconsin Ave. | E12: Yourville | F12: 59999
A13: 8 | D13: 130 Wisconsin Ave. | E13: Yourville | F13: 59999
A14: 9 | C14: 1 | D14: 131 Wisconsin Ave. | E14: Yourville | F14: 59999
A15: 10 | D15: 132 Wisconsin Ave. | E15: Yourville | F15: 59999
A16: 11 | D16: 133 Wisconsin Ave. | E16: Yourville | F16: 59999
A17: 12 | D17: 134 Wisconsin Ave. | E17: Yourville | F17: 59999
A18: 13 | D18: 135 Wisconsin Ave. | E18: Yourville | F18: 59999
A19: 14 | D19: 136 Wisconsin Ave. | E19: Yourville | F19: 59999
A20: 15 | D20: 137 Wisconsin Ave. | E20: Yourville | F20: 59999
A21: 16 | D21: 138 Wisconsin Ave. | E21: Yourville | F21: 59999
A22: 17 | D22: 139 Wisconsin Ave. (Unit 1) | E22: Yourville | F22: 59999 | K22: 608-987-6666
A23: 18 | D23: 139 Wisconsin Ave. (Unit 2) | E23: Yourville | F23: 59999 | K23: 608-987-2222
A24: 19 | D24: 141 Wisconsin Ave. | E24: Yourville | F24: 59999 | K24: 608-987-4444
A25: 20 | D25: 142 Wisconsin Ave. | E25: Yourville | F25: 59999
A27: TOTALS: | B27: =SUM(B6:B25) -> 1 | C27: =SUM(C6:C25) -> 2

Sheet Form 5
B1: (FORM 5) Income Survey Distribution Efforts Tracking Form | I1: Survey End Date: | K1: [ADD DATE]
B2: ENTER UGLG NAME HERE, e.g. VILLLAGE OF YOURVILLE
B3: Add ALL distribution efforts. Must provide details shown for each effort made.
B4: Note: The contact information used (e.g., residential location address, mailing address(es), phone number(s), email
B5: address(es), etc.) MUST be included on Form 4 (Contact List Form) in this Excel document).
A6: Survey # | B6: Non-Respon-dent: | C6: Vacant | D6: Date Confirmed Vacant: | E6: Survey Response Date (if responded): | F6: Survey Mailing #1 Date: | G6: Survey Mailing #2 Date: | H6: Email #1 Date | I6: Email #2 Date: | J6: In-Person Contact/ Attempt #1 Date & Time: | K6: In-Person Contact/ Attempt #2 Date & Time: | L6: Phone Contact/ Attempt #1 Date & Time: | M6: Phone Contact/ Attempt #2 Date & Time:
B7: Insert/Delete Rows Below As Needed. Insert/Delete Columns As Needed.

Sheet Form 5 Ex.
B1: (FORM 5) Income Survey Distribution Efforts Tracking Form | K1: Survey End Date: 1/24/2020
B2: ENTER UGLG NAME HERE, e.g. VILLLAGE OF YOURVILLE
B3: Add ALL distribution efforts. Must provide details shown for each effort made.
B4: Note: The contact information used (e.g., residential location address, mailing address(es), phone number(s), email
B5: address(es), etc.) MUST be included on Form 4 (Contact List Form) in this Excel document).
A6: Survey # | B6: Non-Respon-dent: | C6: Vacant | D6: Date Confirmed Vacant: | E6: Survey Response Date (if responded): | F6: Survey Mailing #1 Date: | G6: Survey Mailing #2 Date: | H6: Email #1 Date: | I6: Email #2 Date: | J6: In-Person Contact/ Attempt #1 Date & Time: | K6: In-Person Contact/ Attempt #2 Date & Time: | L6: Phone Contact/ Attempt #1 Date & Time: | M6: Phone Contact/ Attempt #2 Date & Time:
B7: Insert/Delete Rows Below As Needed. Insert/Delete Columns As Needed.
A8: 1 | E8: 2019-11-22 | F8: 2019-11-15
A9: 2 | C9: 1 | D9: 2019-11-20 | E9: Vacant | F9: 2019-11-15
A10: 3 | E10: 2019-11-23 | F10: 2019-11-15
A11: 4 | E11: 2019-11-26 | F11: 2019-11-15
A12: 5 | E12: 2019-12-14 | F12: 2019-11-15 | G12: 2019-12-05
A13: 6 | B13: 1 | E13: No Response | F13: 2019-11-15 | G13: 2019-12-05 | H13: 2020-01-06 | I13: 2020-01-23 | J13: 1/5/2020 - PM | K13: 1/14/2020 - AM | L13: 12/20/2019 - PM | M13: 1/16/2020 - AM
A14: 7 | E14: 2019-12-28 | F14: 2019-11-15 | G14: 2019-12-05
A15: 8 | E15: 2020-01-12 | F15: 2019-11-15 | G15: 2019-12-05 | J15: 1/5/2020 - PM
A16: 9 | C16: 1 | D16: 2019-11-22 | E16: Vacant | F16: 2019-11-15
A17: 10 | E17: 2019-11-23 | F17: 2019-11-15
A18: 11 | E18: 2019-11-22 | F18: 2019-11-15
A19: 12 | E19: 2019-11-30 | F19: 2019-11-15
A20: 13 | E20: 2019-12-20 | F20: 2019-11-15 | G20: 2019-12-05
A21: 14 | E21: 2019-12-08 | F21: 2019-11-15 | G21: 2019-12-05
A22: 15 | E22: 2019-12-08 | F22: 2019-11-15 | G22: 2019-12-05
A23: 16 | E23: 2019-12-18 | F23: 2019-11-15 | G23: 2019-12-05
A24: 17 | E24: 2020-01-24 | F24: 2019-11-15 | G24: 2019-12-05 | J24: 1/5/2020 - PM | K24: 1/14/2020 - AM | L24: 12/20/2019 - PM | M24: 1/16/2020 - AM
A25: 18 | E25: 2020-01-14 | F25: 2019-11-15 | G25: 2019-12-05 | J25: 1/5/2020 - PM | K25: 1/14/2020 - AM | L25: 12/20/2019 - PM
A26: 19 | E26: 2020-01-05 | F26: 2019-11-15 | G26: 2019-12-05 | J26: 1/5/2020 - PM | L26: 12/20/2019 - PM
A27: 20 | E27: 2019-12-17 | F27: 2019-11-15 | G27: 2019-12-05

Sheet Form 6 Part 1-2
A1: (FORM 6 PART 1-2) Random Sample Survey Methodology:
A2: ENTER UGLG NAME HERE, e.g. VILLLAGE OF YOURVILLE | D2: Survey End Date: | E2: ADD DATE
A4: PART 1 - Summary of Randomization Process:
B6: ADD SUMMARY OF RANDOMIZATION PROCESS HERE
A8: PART 2 - Randomizer.org Random Number Generator Criteria Entered and Results Screenshots:
A10: ADD SCREEN SHOTS BELOW OF NUMBER GENERATOR CRITERIA USED AND RESULTS AS SHOWN IN EXAMPLE FORM 6 PART 1-2 EXAMPLE:

Sheet Form 6 Part 3
A1: (FORM 6 PART 3) Random Sample Survey Methodology | D1: Survey End Date: ADD DATE
A2: ENTER UGLG NAME HERE, e.g. VILLLAGE OF YOURVILLE
A4: PART 3 - Random Number Assignments, Original Sample & Oversample
A6: Family # Assigned for Randomization | B6: Street/Residential Unit Address: | C6: Original Sample (## families) Assigned | D6: Oversample (additional ## families) Assigned | E6: Original Sample # Non-Respondent replaced by Oversample Respondent:
A7: Insert/Delete Rows Below As Needed.
A8: 1
A9: 2
A10: 3
A11: 4
A12: 5
A13: 6
A14: 7
A15: 8
A16: 9
A17: 10
A18: 11
A19: 12
A20: 13
A21: 14
A22: 15
A23: 16
A24: 17
A25: 18
A26: 19
A27: 20
A28: 21
A29: 22
A30: 23
A31: 24
A32: 25
A33: 26
A34: 27
A35: 28
A36: 29
A37: 30
A38: 31
A39: 32
A40: 33
A41: 34
A42: 35
A43: 36
A44: 37
A45: 38
A46: 39
A47: 40
A48: 41
A49: 42
A50: 43
A51: 44
A52: 45
A53: 46
A54: 47
A55: 48
A56: 49
A57: 50
A58: 51
A59: 52
A60: 53
A61: 54
A62: 55
A63: 56
A64: 57
A65: 58
A66: 59
A67: 60
A68: 61
A69: 62
A70: 63
A71: 64
A72: 65
A73: 66
A74: 67
A75: 68
A76: 69
A77: 70
A78: 71
A79: 72
A80: 73
A81: 74
A82: 75
A83: 76
A84: 77
A85: 78
A86: 79
A87: 80
A88: 81
A89: 82
A90: 83
A91: 84
A92: 85
A93: 86
A94: 87
A95: 88
A96: 89
A97: 90
A98: 91
A99: 92
A100: 93
A101: 94
A102: 95
A103: 96
A104: 97
A105: 98
A106: 99
A107: 100

Sheet Form 6 Part 1-2 Ex.
A1: (FORM 6 - PART 1-2 EXAMPLE) Random Sample Survey Methodology: | J1: Survey End Date: 1/24/2020
A2: VILLAGE OF YOURVILLE
A4: PART 1 - Summary of Randomization Process:
B6: Used Randomizer.org. Randomized 100 families. Selected families for Original Sample and Over Sample through corresponding Family #s to p1-p49 in Randomizer.org Results. Results are below.
A8: PART 2 - Randomizer.org Random Number Generator Criteria Entered and Results Screenshots:

Sheet Form 6 Part 3Ex.
A1: (FORM 6 - PART 3 EXAMPLE) Random Sample Survey Methodology | D1: Survey End Date: 1/24/2020
A2: VILLAGE OF YOURVILLE
A4: PART 3 - Random Number Assignments, Original Sample & Oversample
A6: Family # Assigned for Randomization | B6: Street/Residential Unit Address: | C6: Original Sample 41 families) Assigned | D6: Oversample (additional 8 families) Assigned | E6: Original Sample # Non-Respondent replaced by Oversample Respondent:
A7: Insert/Delete Rows Below As Needed.
A8: 1 | B8: 123 Wisconsin Ave. | C8: p6
A9: 2 | B9: 124 Wisconsin Ave. | C9: p24
A10: 3 | B10: 125 Wisconsin Ave.
A11: 4 | B11: 126 Wisconsin Ave. Rm 1 Friendship Nursing Care | D11: p45 | E11: p21
A12: 5 | B12: 126 Wisconsin Ave. Rm 2 Friendship Nursing Care
A13: 6 | B13: 126 Wisconsin Ave. Rm 3 Friendship Nursing Care
A14: 7 | B14: 126 Wisconsin Ave. Rm 4 Friendship Nursing Care | C14: p2
A15: 8 | B15: 126 Wisconsin Ave. Rm 5 Friendship Nursing Care
A16: 9 | B16: 126 Wisconsin Ave. Rm 6 Friendship Nursing Care
A17: 10 | B17: 132 Wisconsin Ave.
A18: 11 | B18: 133 Wisconsin Ave. | C18: p21 (non-respondent)
A19: 12 | B19: 134 Wisconsin Ave.
A20: 13 | B20: 135 Wisconsin Ave.
A21: 14 | B21: 136 Wisconsin Ave.
A22: 15 | B22: 137 Wisconsin Ave. | C22: p28 (non-respondent)
A23: 16 | B23: 138 Wisconsin Ave.
A24: 17 | B24: 139 Wisconsin Ave. Unit 1 | C24: p4
A25: 18 | B25: 139 Wisconsin Ave. Unit 2 | C25: p30
A26: 19 | B26: 141 Wisconsin Ave.
A27: 20 | B27: 142 Wisconsin Ave. | C27: p31
A28: 21 | B28: 143 Wisconsin Ave. | C28: p36
A29: 22 | B29: 144 Wisconsin Ave.
A30: 23 | B30: 145 Wisconsin Ave.
A31: 24 | B31: 146 Wisconsin Ave.
A32: 25 | B32: 147 Wisconsin Ave.
A33: 26 | B33: 148 Wisconsin Ave.
A34: 27 | B34: 149 Wisconsin Ave.
A35: 28 | B35: 150 Wisconsin Ave.
A36: 29 | B36: 151 Wisconsin Ave. | C36: p1
A37: 30 | B37: 152 Wisconsin Ave.
A38: 31 | B38: 153 Wisconsin Ave. Apt A
A39: 32 | B39: 153 Wisconsin Ave. Apt B | C39: p16
A40: 33 | B40: 155 Wisconsin Ave.
A41: 34 | B41: 156 Wisconsin Ave. | C41: p37
A42: 35 | B42: 157 Wisconsin Ave. | C42: p38 (non-respondent)
A43: 36 | B43: 158 Wisconsin Ave. | D43: p48 | E43: p33
A44: 37 | B44: 159 Wisconsin Ave.
A45: 38 | B45: 160 Wisconsin Ave.
A46: 39 | B46: 161 Wisconsin Ave. | C46: p39
A47: 40 | B47: 162 Wisconsin Ave. | C47: p25
A48: 41 | B48: 163 Wisconsin Ave. | C48: p20
A49: 42 | B49: 164 Wisconsin Ave. | C49: p17
A50: 43 | B50: 165 Wisconsin Ave.
A51: 44 | B51: 166 Wisconsin Ave.
A52: 45 | B52: 167 Wisconsin Ave.
A53: 46 | B53: 168 Wisconsin Ave.
A54: 47 | B54: 169 Wisconsin Ave.
A55: 48 | B55: 170 Wisconsin Ave.
A56: 49 | B56: 171 Wisconsin Ave.
A57: 50 | B57: 172 Wisconsin Ave.
A58: 51 | B58: 173 Wisconsin Ave.
A59: 52 | B59: 174 Wisconsin Ave.
A60: 53 | B60: 175 Wisconsin Ave. | C60: p12
A61: 54 | B61: 176 Wisconsin Ave.
A62: 55 | B62: 177 Wisconsin Ave. | C62: p19
A63: 56 | B63: 178 Wisconsin Ave.
A64: 57 | B64: 179 Wisconsin Ave. | C64: p14
A65: 58 | B65: 180 Wisconsin Ave.
A66: 59 | B66: 181 Wisconsin Ave. | C66: p3 | D66: p49 | E66: p38
A67: 60 | B67: 182 Wisconsin Ave.
A68: 61 | B68: 183 Wisconsin Ave.
A69: 62 | B69: 184 Wisconsin Ave.
A70: 63 | B70: 185 Wisconsin Ave.
A71: 64 | B71: 186 Wisconsin Ave. | C71: p11
A72: 65 | B72: 187 Wisconsin Ave. | C72: p15
A73: 66 | B73: 188 Wisconsin Ave.
A74: 67 | B74: 189 Wisconsin Ave. | C74: p32
A75: 68 | B75: 190 Wisconsin Ave. | C75: p40 (non-respondent)
A76: 69 | B76: 191 Wisconsin Ave. | C76: p9
A77: 70 | B77: 192 Wisconsin Ave. | C77: p27
A78: 71 | B78: 193 Wisconsin Ave. | D78: p47 | E78: p29
A79: 72 | B79: 194 Wisconsin Ave. | D79: p42 | E79: p5
A80: 73 | B80: 195 Wisconsin Ave. | C80: p33 (non-respondent)
A81: 74 | B81: 196 Wisconsin Ave. | C81: p22
A82: 75 | B82: 197 Wisconsin Ave. | C82: p23
A83: 76 | B83: 198 Wisconsin Ave. | C83: p5 (non-respondent)
A84: 77 | B84: 199 Wisconsin Ave. | C84: p41
A85: 78 | B85: 200 Wisconsin Ave. | C85: p7
A86: 79 | B86: 201 Wisconsin Ave. | C86: p29 (non-respondent)
A87: 80 | B87: 202 Wisconsin Ave. | C87: p10
A88: 81 | B88: 203 Wisconsin Ave. | C88: p26
A89: 82 | B89: 204 Wisconsin Ave. | C89: p18 (non-respondent)
A90: 83 | B90: 205 Wisconsin Ave.
A91: 84 | B91: 206 Wisconsin Ave. | C91: p35
A92: 85 | B92: 207 Wisconsin Ave. | D92: p44 | E92: p18
A93: 86 | B93: 208 Wisconsin Ave.
A94: 87 | B94: 209 Wisconsin Ave.
A95: 88 | B95: 210 Wisconsin Ave.
A96: 89 | B96: 211 Wisconsin Ave. | D96: p43 | E96: p8
A97: 90 | B97: 212 Wisconsin Ave. | D97: p46 | E97: p28
A98: 91 | B98: 213 Wisconsin Ave.
A99: 92 | B99: 214 Wisconsin Ave. | C99: p8 (non-respondent)
A100: 93 | B100: 215 Wisconsin Ave.
A101: 94 | B101: 216 Wisconsin Ave. | C101: p34
A102: 95 | B102: 217 Wisconsin Ave.
A103: 96 | B103: 218 Wisconsin Ave.
A104: 97 | B104: 219 Wisconsin Ave. | C104: p13
A105: 98 | B105: 220 Wisconsin Ave.
A106: 99 | B106: 221 Wisconsin Ave.
A107: 100 | B107: 222 Wisconsin Ave.

Sheet Form 7
A1: (FORM 7) Limited Clientele Residential Living Facility Family Data | P1: Survey End Date: ADD DATE
A2: ENTER UGLG NAME HERE, e.g. VILLLAGE OF YOURVILLE
A3: ENTER NAME OF FACILITY | K3: Address: Enter Facility Address
A5: *Must record family occupancy (# of families and family size in each living unit) for ALL living units. Married or related persons in the same living unit may be counted as 1 family. Unrelated persons who are not family living in the same living unit are separate families. Enter the # of persons in the family under the corresponding race/ethnicity (if available) or under the "Not Available" option. Also incorporate/report this data in Forms 2-6 in the data for all families in the Service Area/Survey Area.
A7: *A letter from the the facility must be provided with this form. Refer to Income Survey Guide for guidance.
A9: Unit # | B9: Vacant (enter "1" if appli-cable) | C9: Family Race/ Ethnicity Information | X9: TOTAL # IN FAMILY (Family Size)
C10: White | D10: White + HISPANIC | E10: Black/ African American | F10: Black/ African American + HISPANIC | G10: Asian | H10: Asian + HISPANIC | I10: American Indian/ Alaskan Native | J10: American Indian/ Alaskan Native + HISPANIC | K10: Native Hawaiian/ Pacific Islander | L10: Native Hawaiian/ Pacific Islander + HISPANIC | M10: American Indian/ Alaskan Native & White | N10: American Indian/ Alaskan Native & White + HISPANIC | O10: Asian & White | P10: Asian & White + HISPANIC | Q10: Black/ African American & White | R10: Black/ African American & White + HISPANIC | S10: American Indian/ Alaskan Native & Black/African American | T10: American Indian/ Alaskan Native & Black/African American + HISPANIC | U10: Other Multi- Racial | V10: Other Multi- Racial + HISPANIC | W10: Not Available
A11: Insert/Delete Rows Below As Needed.
X12: =SUM(C12:W12) -> 0
X13: 0
X14: 0
X15: 0
X16: 0
X17: 0
X18: 0
X19: 0
X20: 0
X21: 0
X22: 0
X23: 0
X24: 0
A26: TOTALS: | B26: =SUM(B11:B25) -> 0 | C26: 0 | D26: 0 | E26: 0 | F26: 0 | G26: 0 | H26: 0 | I26: 0 | J26: 0 | K26: 0 | L26: 0 | M26: 0 | N26: 0 | O26: 0 | P26: 0 | Q26: 0 | R26: 0 | S26: 0 | T26: 0 | U26: 0 | V26: 0 | W26: 0 | X26: 0

Sheet Form 7 Ex.
A1: (FORM 7 EXAMPLE) Limited Clientele Residential Living Facility Family Data | S1: Survey End Date: 1/24/2020
A2: Village of Yourville
A3: Friendly Services Convalescent Center | N3: Address: 100 Riverdale Avenue, Yourville, WI 53333
A5: *Must record family occupancy (# of families and family size in each living unit) for ALL living units. Married or related persons in the same living unit may be counted as 1 family. Unrelated persons who are not family living in the same living unit are separate families. Enter the # of persons in the family under the corresponding race/ethnicity (if available) or under the "Not Available" option.) Also incorporate/report this data in Forms 2-6 in the data for all families in the Service Area/Survey Area.
A7: *A letter from the the facility must be provided with this form. Refer to Income Survey Guide for guidance.
A9: Unit # | B9: Vacant (enter "1" if appli-cable) | C9: Family Race/ Ethnicity Information | X9: TOTAL # IN FAMILY (Family Size)
C10: White | D10: White + HISPANIC | E10: Black/ African American | F10: Black/ African American + HISPANIC | G10: Asian | H10: Asian + HISPANIC | I10: American Indian/ Alaskan Native | J10: American Indian/ Alaskan Native + HISPANIC | K10: Native Hawaiian/ Pacific Islander | L10: Native Hawaiian/ Pacific Islander + HISPANIC | M10: American Indian/ Alaskan Native & White | N10: American Indian/ Alaskan Native & White + HISPANIC | O10: Asian & White | P10: Asian & White + HISPANIC | Q10: Black/ African American & White | R10: Black/ African American & White + HISPANIC | S10: American Indian/ Alaskan Native & Black/African American | T10: American Indian/ Alaskan Native & Black/African American + HISPANIC | U10: Other Multi- Racial | V10: Other Multi- Racial + HISPANIC | W10: Not Available
A11: Insert/Delete Rows Below As Needed.
A12: Room 1 | C12: 1 | X12: =SUM(C12:W12) -> 1
A13: Room 2 | C13: 2 | X13: =SUM(C13:W13) -> 2
A14: Room 3 | C14: 1 | X14: 1
A15: Room 4A | C15: 1 | X15: 1
A16: Room 4B | E16: 1 | X16: 1
A17: Room 5 | C17: 1 | X17: 1
A18: Room 6 | B18: 1 | X18: 0
A19: Room 7A | C19: 1 | X19: 1
A20: Room 7B | I20: 1 | X20: 1
A21: Room 8 | B21: 1 | X21: 0
A22: Room 9 | C22: 1 | X22: 1
A23: Room 10 | D23: 2 | X23: 2
A24: Room 11 | B24: 1 | X24: 0
A25: Room 12 | B25: 1 | X25: 0
A27: TOTALS: | B27: =SUM(B12:B26) -> 4 | C27: 8 | D27: 2 | E27: 1 | F27: 0 | G27: 0 | H27: 0 | I27: 1 | J27: 0 | K27: 0 | L27: 0 | M27: 0 | N27: 0 | O27: 0 | P27: 0 | Q27: 0 | R27: 0 | S27: 0 | T27: 0 | U27: 0 | V27: 0 | W27: 0 | X27: 12

Sheet Form 8
B1: (FORM 8) Multi-Jurisdictional Service Area LMI Calculation
B2: ENTER UGLG NAME HERE, e.g. VILLLAGE OF YOURVILLE
D3: Survey End Date: ADD DATE
B5: Maps of the entire Service Area as well as each individual Survey Area and/or Census Tract (as applicable) must be submitted with the Income Survey Packet in the Service Area/Survey Area Maps section.
B7: Beneficiaries/Service Area | C7: Data Source** | D7: # LMI Persons [LOWMOD] | E7: # Persons Total Population [LOWMODUNIV]
B9: ADD JURISDICTION 1 NAME* | D9: 0 | E9: 0
B10: ADD JURISDICTION 2 NAME* | D10: 0 | E10: 0
B11: ADD JURISDICTION 3 NAME* | D11: 0 | E11: 0
B12: ADD JURISDICTION 4 NAME* | D12: 0 | E12: 0
B13: ADD JURISDICTION 5 NAME* | D13: 0 | E13: 0
B14: ADD JURISDICTION 6 NAME* | D14: 0 | E14: 0
B15: ADD JURISDICTION 7 NAME* | D15: 0 | E15: 0
B16: [INSERT ROWS AS NEEDED] | D16: 0 | E16: 0
B17: TOTALS [formula pre-entered here] | D17: =SUM(D9:D16) -> 0 | E17: =SUM(E9:E16) -> 0
B18: SERVICE AREA (ALL) LMI % | C18: [formula pre-entered here]*** | E18: =D17/E17 -> 
B20: *For Jurisdiction Name, add ULGLG name (e.g., Town of Yourville) or Census Tract #-Block # (e.g., Census Tract 100.01 Block 3) and if only a portion of the jurisdiction is included in the survey, make the notation, "(Partial)".
B22: **For Data Source, enter 1 of 4 options:
C23: 1) HUD LMISD Community-Wide
C24: 2) HUD LMISD Census Tract (ADD Tract # and Block #)
C25: 3) Income Survey-Census Survey
C26: 4) Income Survey-Random Sample Survey
B28: ***LMI Percentage Calculation for complete Service Area (formula entered in table above):
C29: (## TOTAL LOWMOD) ÷ (## TOTAL LOWMODUNIV) x 100

Sheet Form 8 Ex.
B1: (FORM 8 EXAMPLES) Multi-Jurisdictional Service Area LMI Calculation
B2: TOWN OF YOURVILLE | E2: Survey End Date: 1/24/2020
B4: Maps of the entire Service Area as well as each individual Survey Area and/or Census Tract (as applicable) must be submitted with the Income Survey Packet in the Service Area/Survey Area Maps section.
B6: EXAMPLE 1
B7: LMI calculation for a project benefitting/serving multiple jurisdictions, for which HUD LMISD Census Tract data are used for two jurisdictions (portions of 2 UGLGs); HUD LMISD Community-Wide for 1 jurisdiction (LMISD for 1 entire UGLG); and income survey data for 2 jurisdictions (census survey of 1 entire UGLG and census survey for a portion of 1 UGLG)
B9: Beneficiaries/Service Area | C9: Data Source | D9: # LMI Persons [LOWMOD] | E9: # Persons Total Population [LOWMODUNIV]
B10: Town of Adamsville (Partial) | C10: HUD LMISD Census Tract 100.20 - Block 1 | D10: 340 | E10: 1000
B11: Town of Hillside (Partial) | C11: HUD LMISD Census Tract 100.20 - Block 2 | D11: 1740 | E11: 3000
B12: Town of Yourville | C12: HUD LMISD Community-Wide | D12: 260 | E12: 500
B13: Village of Cantonville | C13: Census Survey | D13: 280 | E13: 400
B14: Village of Madisontown (Partial) | C14: Census Survey | D14: 60 | E14: 100
B15: TOTALS | D15: =SUM(D10:D14) -> 2680 | E15: =SUM(E10:E14) -> 5000
B16: SERVICE AREA (ALL) LMI % | E16: =D15/E15 -> 53.60%
B20: EXAMPLE 2
B21: LMI calculation for a project benefitting/serving multiple Census Tracts, for which HUD LMISD are used for 2 Census Tracts and Random Sample Survey data are used for 1 Census Tract:
B23: Beneficiaries/Service Area | C23: Data Source | D23: # LMI Persons [LOWMOD] | E23: # Persons Total Population [LOWMODUNIV]
B24: HUD LMISD Census Tract 100.20 - Block 1 | C24: HUD LMISD Census Tract 100.20 - Block 1 | D24: 380 | E24: 1000
B25: HUD LMISD Census Tract 100.20 - Block 2 | C25: HUD LMISD Census Tract 100.20 - Block 2 | D25: 1200 | E25: 2000
B26: HUD LMISD Census Tract 100.30 - Block 1 | C26: Random Sample Survey | D26: 1000 | E26: 2000
B27: TOTALS | D27: =SUM(D24:D26) -> 2580 | E27: =SUM(E24:E26) -> 5000
B28: SERVICE AREA (ALL) LMI % | E28: =D27/E27 -> 51.60%
